bitfinex/quotes_BTCUSD_20251217
["timestamp","ask_amount","ask_price","bid_price","bid_amount"]
[1765960231021,1e-08,86653.0,86652.0,1.55145346]
[1765960231940,1e-08,86653.0,86652.0,1.70118931]
[1765960233960,0.00116,86675.0,86652.0,1.70118931]
[1765960233961,0.00116,86675.0,86674.0,0.62331809]
[1765960234161,0.00116,86675.0,86674.0,0.64321096]
[1765960235047,0.00116,86675.0,86674.0,0.57491257]
[1765960235255,0.00116,86675.0,86674.0,0.59319257]
[1765960235441,0.00116,86675.0,86674.0,0.64521096]
[1765960235730,0.00116,86675.0,86674.0,0.64621096]
[1765960236073,0.00116,86675.0,86674.0,0.64321096]
[1765960236501,0.0879874,86695.0,86693.0,0.23069912]
[1765960236704,0.0879874,86695.0,86692.0,0.01153508]
[1765960236910,0.0879874,86695.0,86692.0,0.24223682]
[1765960237113,0.09952209,86695.0,86692.0,0.01153508]
[1765960237317,0.0879874,86695.0,86692.0,0.24223496]
[1765960238358,0.0909874,86695.0,86692.0,0.24223496]
[1765960238739,0.33521654,86695.0,86692.0,0.01153508]
[1765960239086,0.33521654,86695.0,86685.0,0.23071917]
[1765960239087,0.33521654,86695.0,86679.0,0.01153681]
[1765960239088,0.01555,86682.0,86679.0,0.01153681]
[1765960239288,0.02708642,86682.0,86679.0,0.01153681]
[1765960239442,0.02708642,86682.0,86676.0,0.01153721]
[1765960239443,0.01153655,86681.0,86677.0,0.01153708]
[1765960239643,0.01153642,86682.0,86678.0,0.01153695]
[1765960240074,0.24226398,86683.0,86679.0,0.01153681]
[1765960240272,0.24226398,86683.0,86680.0,0.01153668]
[1765960240273,0.01153628,86683.0,86680.0,0.01153668]
[1765960240475,0.001,86682.0,86680.0,0.24226828]
[1765960240678,0.001,86682.0,86680.0,0.01153668]
[1765960241270,0.001,86682.0,86680.0,0.24226835]
[1765960241493,0.001,86681.0,86680.0,0.24226835]
[1765960241693,0.01137,86684.0,86681.0,0.24226514]
[1765960241876,0.001,86683.0,86681.0,0.24226514]
[1765960242073,0.001,86682.0,86681.0,0.24226514]
[1765960242279,0.001,86683.0,86681.0,0.24226514]
[1765960242490,0.01137,86684.0,86681.0,0.24226514]
[1765960242659,0.01153602,86685.0,86682.0,0.01153642]
[1765960243107,0.01153588,86686.0,86683.0,0.01153628]
[1765960243437,0.01153575,86687.0,86684.0,0.01061615]
[1765960243639,0.01067675,86686.0,86684.0,0.01061615]
[1765960243782,0.01153575,86687.0,86684.0,0.01061615]
[1765960244167,0.01153535,86690.0,86686.0,0.01153588]
[1765960244384,0.02221229,86689.0,86686.0,0.01153588]
[1765960244595,0.01067681,86688.0,86685.0,0.01153602]
[1765960245123,0.002,86686.0,86685.0,0.01153602]
[1765960245424,0.002,86686.0,86685.0,0.02537924]
[1765960245663,0.003,86689.0,86686.0,0.24225364]
[1765960245876,0.002,86688.0,86686.0,0.01153588]
[1765960246558,0.02221605,86689.0,86686.0,0.01153588]
[1765960246781,0.01068057,86688.0,86686.0,0.01153588]
[1765960247766,0.01068057,86687.0,86686.0,0.01153588]
[1765960247963,0.01068057,86687.0,86686.0,0.2422519]
[1765960248168,0.01069379,86689.0,86688.0,0.24224806]
[1765960248372,0.23068888,86697.0,86689.0,0.06411548]
[1765960248373,0.01069559,86690.0,86689.0,0.06411548]
[1765960248578,0.01069559,86691.0,86690.0,0.01619]
[1765960248778,0.0106956,86691.0,86690.0,0.04028]
[1765960249105,0.00025375,86692.0,86691.0,0.27098445]
[1765960249260,0.01095068,86692.0,86691.0,0.27098445]
[1765960249462,0.00025375,86692.0,86691.0,0.27098445]
[1765960251469,0.00225375,86692.0,86691.0,0.27098445]
[1765960251672,0.00525375,86692.0,86691.0,0.27259732]
[1765960252223,0.00325375,86692.0,86691.0,0.27259732]
[1765960252555,0.00125375,86692.0,86691.0,0.27259732]
[1765960253055,0.00225375,86692.0,86691.0,0.27259732]
[1765960253260,0.00125375,86692.0,86691.0,0.27259732]
[1765960254105,0.00025375,86692.0,86691.0,0.27259732]
[1765960254758,0.00125375,86692.0,86691.0,0.29087732]
[1765960254962,0.00125375,86692.0,86691.0,0.27098445]
[1765960255654,0.00025375,86692.0,86691.0,0.27098445]
[1765960255843,0.00225375,86692.0,86691.0,0.27098445]
[1765960255968,0.00125375,86692.0,86691.0,0.27098445]
[1765960256372,0.00225375,86692.0,86691.0,0.27098445]
[1765960256975,0.00125375,86692.0,86691.0,0.27098445]
[1765960257423,0.00225375,86692.0,86691.0,0.27098445]
[1765960258668,0.00225375,86692.0,86691.0,0.24689445]
[1765960258849,0.00225375,86692.0,86691.0,0.23070445]
[1765960259457,0.00225375,86692.0,86691.0,0.27098445]
[1765960260309,0.00225375,86692.0,86691.0,0.27259732]
[1765960261012,0.00225375,86692.0,86687.0,0.01153575]
[1765960261013,0.01153522,86691.0,86687.0,0.01153575]
[1765960261346,0.23295748,86692.0,86690.0,0.23070711]
[1765960261347,0.00125375,86692.0,86690.0,0.23070711]
[1765960261595,0.01153522,86691.0,86688.0,0.01153562]
[1765960262208,0.01153548,86689.0,86686.0,0.01153588]
[1765960262634,0.01153562,86688.0,86681.0,0.2422659]
[1765960262841,0.24225085,86687.0,86682.0,0.01153642]
[1765960263055,0.24225562,86686.0,86681.0,0.01153655]
[1765960263268,0.24226102,86684.0,86679.0,0.01153681]
[1765960263472,0.01153655,86681.0,86678.0,0.01153695]
[1765960263877,0.01153655,86681.0,86677.0,0.01153708]
[1765960264106,0.01153681,86679.0,86675.0,0.01153735]
[1765960264743,0.01153681,86679.0,86676.0,0.01153721]
[1765960264936,0.01153668,86680.0,86677.0,0.01153708]
[1765960265465,0.00735,86677.0,86672.0,0.01153775]
[1765960265751,0.00735,86677.0,86671.0,0.23075738]
[1765960265752,0.01153775,86672.0,86668.0,0.01153828]
[1765960266569,0.01153761,86673.0,86669.0,0.24230116]
[1765960266936,0.01153761,86673.0,86669.0,0.01153815]
[1765960268373,0.01253761,86673.0,86669.0,0.01153815]
[1765960268533,0.001,86673.0,86670.0,0.24229836]
[1765960268736,0.001,86673.0,86671.0,0.23075557]
[1765960268981,0.001,86673.0,86672.0,0.01238]
[1765960269145,0.001,86673.0,86672.0,0.05451]
[1765960269352,0.001,86673.0,86672.0,0.05612287]
[1765960269813,0.01153735,86675.0,86670.0,0.01153801]
[1765960270013,0.01153721,86676.0,86673.0,0.01153761]
[1765960270216,0.00452,86673.0,86672.0,0.01153775]
[1765960270387,0.00452,86673.0,86671.0,0.24229369]
[1765960271195,0.00552,86673.0,86671.0,0.24229369]
[1765960274431,0.00552,86673.0,86671.0,0.01153788]
[1765960274998,0.00552,86673.0,86671.0,0.24229366]
[1765960275425,0.00552,86673.0,86671.0,0.01153788]
[1765960275601,0.00552,86673.0,86671.0,0.24229374]
[1765960275982,0.00552,86673.0,86667.0,0.01153841]
[1765960276188,0.01153801,86670.0,86667.0,0.01165179]
[1765960276422,0.24230008,86670.0,86667.0,0.00011338]
[1765960276649,0.01153801,86670.0,86667.0,0.00011338]
[1765960276977,0.01153801,86670.0,86667.0,0.01165179]
[1765960277335,0.01153788,86671.0,86668.0,0.01153828]
[1765960277749,0.01153788,86671.0,86667.0,0.24241795]
[1765960277750,0.002,86670.0,86667.0,0.24241795]
[1765960277964,0.01353801,86670.0,86667.0,0.00011338]
[1765960278167,0.23076301,86669.0,86667.0,0.00011338]
[1765960279243,0.01353801,86670.0,86667.0,0.00011338]
[1765960279445,0.01153801,86670.0,86667.0,0.00011338]
[1765960279967,0.24229989,86670.0,86667.0,0.00011338]
[1765960280393,0.002,86669.0,86667.0,0.00011338]
[1765960281296,0.002,86669.0,86668.0,0.23076568]
[1765960282113,0.01153775,86672.0,86669.0,0.01153815]
[1765960282348,0.2422943,86672.0,86668.0,0.23076568]
[1765960282554,0.2422943,86672.0,86667.0,0.01165179]
[1765960282555,0.03384,86668.0,86667.0,0.00011338]
[1765960284178,0.03584,86668.0,86667.0,0.00011338]
[1765960284331,0.03784,86668.0,86667.0,0.00011338]
[1765960285436,0.004,86668.0,86667.0,0.04224338]
[1765960285632,0.004,86668.0,86667.0,0.27301172]
[1765960286020,0.004,86668.0,86667.0,0.27462459]
[1765960287340,0.002,86668.0,86667.0,0.27462459]
[1765960287567,0.03964522,86691.0,86687.0,0.24224952]
[1765960287826,0.03964522,86691.0,86687.0,0.24225053]
[1765960288002,0.00025375,86692.0,86690.0,0.25646711]
[1765960288142,0.24224246,86690.0,86683.0,0.23072542]
[1765960288352,0.01153588,86686.0,86682.0,0.01153642]
[1765960289010,0.01153588,86686.0,86683.0,0.01153628]
[1765960289263,0.24225609,86686.0,86682.0,0.01153642]
[1765960289447,0.24225847,86685.0,86681.0,0.24226634]
[1765960289812,0.01153602,86685.0,86681.0,0.24226634]
[1765960290137,0.24225923,86684.0,86679.0,0.01153681]
[1765960290292,0.02268,86677.0,86676.0,0.01153721]
[1765960290965,0.00619,86677.0,86676.0,0.01153721]
[1765960292129,0.00719,86677.0,86676.0,0.01153721]
[1765960293357,0.00819,86677.0,86676.0,0.01153721]
[1765960293541,0.01153721,86676.0,86671.0,0.24229352]
[1765960293836,0.01972708,86677.0,86673.0,0.01153761]
[1765960294064,0.00819,86677.0,86674.0,0.01153748]
[1765960294374,0.00619,86677.0,86674.0,0.2422846]
[1765960294747,0.002,86676.0,86674.0,0.2422846]
[1765960294956,0.002,86676.0,86675.0,0.23074506]
[1765960295342,0.001,86676.0,86675.0,0.23074506]
[1765960295538,0.001,86676.0,86674.0,0.2422846]
[1765960296661,0.00719,86677.0,86674.0,0.2422846]
[1765960296864,0.001,86677.0,86676.0,0.23074438]
[1765960297083,0.002,86677.0,86676.0,0.27378438]
[1765960297596,0.002,86677.0,86676.0,0.27539725]
[1765960297597,0.001,86677.0,86676.0,0.27539725]
[1765960297857,0.01153628,86683.0,86679.0,0.01153681]
[1765960298239,0.24226396,86683.0,86679.0,0.01153681]
[1765960298600,0.01153642,86682.0,86679.0,0.01153681]
[1765960298983,0.002,86683.0,86680.0,0.01153668]
[1765960299410,0.01153615,86684.0,86680.0,0.24226815]
[1765960300125,0.002,86683.0,86680.0,0.24226815]
[1765960300512,0.01153615,86684.0,86680.0,0.24226815]
[1765960300712,0.002,86682.0,86681.0,0.01153655]
[1765960301432,0.002,86682.0,86681.0,0.06672655]
[1765960301644,0.002,86684.0,86681.0,0.06672655]
[1765960301645,0.002,86684.0,86681.0,0.25441599]
[1765960301849,0.002,86683.0,86680.0,0.24227031]
[1765960302244,0.01153615,86684.0,86680.0,0.24227031]
[1765960302515,0.00619,86688.0,86685.0,0.01153602]
[1765960302636,0.23070539,86691.0,86685.0,0.01153602]
[1765960302637,0.01069565,86689.0,86687.0,0.24225061]
[1765960303200,0.01178883,86692.0,86689.0,0.25439525]
[1765960303359,0.00025375,86692.0,86691.0,0.27374445]
[1765960304220,0.00025375,86692.0,86691.0,0.01789]
[1765960304374,0.00225375,86692.0,86690.0,0.23070518]
[1765960304737,0.00225375,86692.0,86689.0,0.24224344]
[1765960304988,0.00025375,86692.0,86689.0,0.24224344]
[1765960305193,0.00225375,86692.0,86690.0,0.23070536]
[1765960305727,0.00225375,86692.0,86689.0,0.24224344]
[1765960305875,0.01153535,86690.0,86685.0,0.01153602]
[1765960306081,0.24224432,86690.0,86686.0,0.01153588]
[1765960306276,0.01153548,86689.0,86686.0,0.01153588]
[1765960306478,0.01153548,86689.0,86681.0,0.01153655]
[1765960306479,0.24225597,86686.0,86681.0,0.01153655]
[1765960306694,0.24590255,86685.0,86681.0,0.01153655]
[1765960306895,0.01153602,86685.0,86681.0,0.01153655]
[1765960307504,0.24225871,86685.0,86681.0,0.01153655]
[1765960308302,0.24325871,86685.0,86681.0,0.01153655]
[1765960308505,0.24425871,86685.0,86681.0,0.01153655]
[1765960308687,0.01153615,86684.0,86681.0,0.01153655]
[1765960308888,0.002,86685.0,86684.0,0.04304]
[1765960309643,0.002,86685.0,86684.0,0.01789]
[1765960309849,0.002,86685.0,86678.0,0.23073713]
[1765960309850,0.01153642,86682.0,86678.0,0.23073713]
[1765960310049,0.01153642,86682.0,86674.0,0.01153748]
[1765960310050,0.00076,86675.0,86674.0,0.01153748]
[1765960310230,0.00076,86675.0,86672.0,0.01153775]
[1765960310618,0.01153748,86674.0,86670.0,0.01153801]
[1765960311924,0.01429735,86675.0,86672.0,0.01153775]
[1765960312170,0.00276,86675.0,86672.0,0.2422908]
[1765960312383,0.00076,86675.0,86673.0,0.23075039]
[1765960312566,0.00076,86675.0,86672.0,0.2422908]
[1765960313388,0.001,86674.0,86672.0,0.2422908]
[1765960313952,0.01229735,86675.0,86672.0,0.01153775]
[1765960314154,0.01329735,86675.0,86672.0,0.01153775]
[1765960314374,0.01153748,86674.0,86670.0,0.01153801]
[1765960314593,0.01153761,86673.0,86670.0,0.01153801]
[1765960314795,0.01153748,86674.0,86671.0,0.01153788]
[1765960315014,0.001,86674.0,86671.0,0.24229383]
[1765960315356,0.01229735,86675.0,86671.0,0.24229383]
[1765960316318,0.01229735,86675.0,86672.0,0.01153775]
[1765960316484,0.01153775,86672.0,86669.0,0.01153815]
[1765960317086,0.002,86674.0,86670.0,0.01153801]
[1765960317288,0.002,86674.0,86671.0,0.23075601]
[1765960317512,0.002,86674.0,86669.0,0.24229875]
[1765960317513,0.01153761,86673.0,86669.0,0.24229875]
[1765960317673,0.01153748,86674.0,86670.0,0.01153801]
[1765960317875,0.002,86672.0,86670.0,0.03668801]
[1765960318101,0.001,86672.0,86670.0,0.24229632]
[1765960318356,0.01153761,86673.0,86670.0,0.01153801]
[1765960319141,0.24329288,86672.0,86669.0,0.01153815]
[1765960319339,0.24229794,86671.0,86667.0,0.00011338]
[1765960319587,0.01153788,86671.0,86667.0,0.00011338]
[1765960320581,0.01253788,86671.0,86667.0,0.00011338]
[1765960320880,0.01153801,86670.0,86667.0,0.01165179]
[1765960321084,0.01253788,86671.0,86668.0,0.01153828]
[1765960321231,0.01353788,86671.0,86668.0,0.01153828]
[1765960322087,0.01153748,86674.0,86669.0,0.01153815]
[1765960323330,0.01153748,86674.0,86669.0,0.03830102]
[1765960323480,0.001,86670.0,86669.0,0.00161287]
[1765960323926,0.01153775,86672.0,86669.0,0.00161287]
[1765960324077,0.24229298,86672.0,86669.0,0.00161287]
[1765960324482,0.01153775,86672.0,86669.0,0.00161287]
[1765960324699,0.24229344,86672.0,86669.0,0.00161287]
[1765960324921,0.001,86670.0,86669.0,0.00161287]
[1765960325085,0.001,86672.0,86670.0,0.01153801]
[1765960325295,0.001,86672.0,86670.0,0.24229772]
[1765960326341,0.00076,86675.0,86673.0,0.03001]
[1765960326646,0.00076,86675.0,86672.0,0.27230278]
[1765960326851,0.00076,86675.0,86673.0,0.23075054]
[1765960327001,0.00076,86675.0,86672.0,0.04154775]
[1765960327217,0.00328,86673.0,86670.0,0.01153801]
[1765960327521,0.00328,86673.0,86667.0,0.00011338]
[1765960327522,0.01153801,86670.0,86667.0,0.00011338]
[1765960328023,0.01153801,86670.0,86667.0,0.01165179]
[1765960328227,0.01153801,86670.0,86667.0,0.00011338]
[1765960328999,0.24229851,86670.0,86667.0,0.00011338]
[1765960330158,0.01253801,86670.0,86667.0,0.01165179]
[1765960330359,0.01353801,86670.0,86667.0,0.01165179]
[1765960330557,0.002,86670.0,86667.0,0.01165179]
[1765960330763,0.26735082,86670.0,86667.0,0.00011338]
[1765960330992,0.24430082,86670.0,86667.0,0.00011338]
[1765960331735,0.01353801,86670.0,86667.0,0.00011338]
[1765960332118,0.24430002,86670.0,86667.0,0.00011338]
[1765960332986,0.002,86670.0,86667.0,0.00011338]
[1765960333210,0.002,86670.0,86667.0,0.01165179]
[1765960333420,0.01353801,86670.0,86667.0,0.01165179]
[1765960333760,0.002,86670.0,86669.0,0.03001]
[1765960333956,0.002,86670.0,86668.0,0.24540397]
[1765960334367,0.002,86670.0,86667.0,0.01165179]
[1765960334565,0.01353801,86670.0,86667.0,0.01165179]
[1765960334772,0.01153801,86670.0,86667.0,0.01165179]
[1765960334946,0.24229639,86671.0,86667.0,0.01165179]
[1765960335184,0.002,86670.0,86667.0,0.01165179]
[1765960335391,0.002,86670.0,86667.0,0.24241861]
[1765960336189,0.01253801,86670.0,86667.0,0.00011338]
[1765960336557,0.23076568,86668.0,86667.0,0.00011338]
[1765960336709,0.27329568,86668.0,86667.0,0.00011338]
[1765960336912,0.28399964,86668.0,86667.0,0.00011338]
[1765960337785,0.28499964,86668.0,86667.0,0.00011338]
[1765960337985,0.24246964,86668.0,86667.0,0.00011338]
[1765960338275,0.01070396,86668.0,86667.0,0.04999338]
[1765960338461,0.01153775,86672.0,86668.0,0.23076568]
[1765960338617,0.01070445,86671.0,86668.0,0.24230396]
[1765960338829,0.01070445,86671.0,86668.0,0.27231396]
[1765960339037,0.24229306,86672.0,86669.0,0.01153815]
[1765960339232,0.01153748,86674.0,86670.0,0.01153801]
[1765960339432,0.25299698,86673.0,86669.0,0.01315102]
[1765960339635,0.25299997,86672.0,86669.0,0.00161287]
[1765960339860,0.01070511,86671.0,86669.0,0.00161287]
[1765960340060,0.23076035,86670.0,86669.0,0.00161287]
[1765960340237,0.01070511,86670.0,86669.0,0.00161287]
[1765960340944,0.01070511,86671.0,86669.0,0.00161287]
[1765960341146,0.01070511,86670.0,86669.0,0.00161287]
[1765960341345,0.003,86670.0,86669.0,0.00161287]
[1765960342686,0.002,86670.0,86669.0,0.00161287]
[1765960343149,0.01270511,86670.0,86669.0,0.00161287]
[1765960344038,0.01270511,86670.0,86667.0,0.00011338]
[1765960344039,1.746891,86668.0,86667.0,0.00011338]
[1765960344183,1.746891,86668.0,86643.0,0.00178657]
[1765960344184,0.0417,86644.0,86643.0,0.00178657]
[1765960344397,1.24488514,86644.0,86643.0,0.00178657]
[1765960344594,0.813464,86644.0,86643.0,0.00178657]
[1765960345195,1.104164,86644.0,86643.0,0.00178657]
[1765960345863,1.13885817,86644.0,86643.0,0.00178657]
[1765960346645,1.13885817,86644.0,86627.0,0.01154374]
[1765960346646,0.01058,86631.0,86627.0,0.24241608]
[1765960346866,0.09218395,86629.0,86628.0,0.01154361]
[1765960347032,0.09218395,86629.0,86627.0,0.01154374]
[1765960348057,0.01058,86631.0,86629.0,0.23086718]
[1765960348262,0.09218395,86630.0,86629.0,0.23086718]
[1765960348437,0.09218395,86630.0,86628.0,0.01154361]
[1765960348639,0.09218395,86630.0,86629.0,0.00044451]
[1765960348981,0.32305085,86630.0,86629.0,0.00044451]
[1765960349126,0.34317085,86630.0,86629.0,0.00044451]
[1765960349587,0.36428085,86630.0,86629.0,0.00044451]
[1765960349803,0.36628085,86630.0,86629.0,0.00044451]
[1765960350296,0.84792385,86630.0,86629.0,0.00044451]
[1765960350491,0.84892385,86630.0,86629.0,0.00044451]
[1765960350785,0.84892385,86630.0,86629.0,4.51e-06]
[1765960350786,1.13762385,86630.0,86629.0,4.51e-06]
[1765960350988,1.14827069,86630.0,86629.0,4.51e-06]
[1765960352375,1.14927069,86630.0,86629.0,4.51e-06]
[1765960352490,1.13862385,86630.0,86629.0,4.51e-06]
[1765960352697,1.15126101,86630.0,86629.0,4.51e-06]
[1765960353112,1.14726101,86630.0,86629.0,4.51e-06]
[1765960353554,1.13215101,86630.0,86629.0,4.51e-06]
[1765960353756,1.15404101,86630.0,86629.0,4.51e-06]
[1765960353906,1.15104101,86630.0,86629.0,4.51e-06]
[1765960354101,0.86347301,86630.0,86629.0,4.51e-06]
[1765960355122,0.82902401,86630.0,86629.0,4.51e-06]
[1765960355344,0.84553401,86630.0,86629.0,4.51e-06]
[1765960355542,0.84953401,86630.0,86629.0,4.51e-06]
[1765960355955,0.84853401,86630.0,86629.0,4.51e-06]
[1765960356297,0.85153401,86630.0,86629.0,4.51e-06]
[1765960356773,0.2967,86630.0,86629.0,4.51e-06]
[1765960357955,0.006,86630.0,86629.0,4.51e-06]
[1765960358197,0.2760869,86630.0,86629.0,4.51e-06]
[1765960358754,0.8643865,86630.0,86629.0,4.51e-06]
[1765960358952,0.8613865,86630.0,86629.0,4.51e-06]
[1765960359179,0.8583865,86630.0,86629.0,4.51e-06]
[1765960359497,0.8613865,86630.0,86629.0,4.51e-06]
[1765960359729,0.8537569,86630.0,86629.0,4.51e-06]
[1765960359851,0.86438825,86630.0,86629.0,4.51e-06]
[1765960360276,0.87593386,86630.0,86629.0,4.51e-06]
[1765960365232,0.69711374,86630.0,86629.0,4.51e-06]
[1765960366049,0.74713213,86630.0,86629.0,4.51e-06]
[1765960366248,0.77164162,86630.0,86629.0,4.51e-06]
[1765960366551,0.76864162,86630.0,86629.0,4.51e-06]
[1765960366895,0.7656491,86630.0,86629.0,4.51e-06]
[1765960367104,0.7706491,86630.0,86629.0,4.51e-06]
[1765960367953,0.7706491,86630.0,86597.0,0.0002]
[1765960367954,0.24986221,86598.0,86597.0,0.0002]
[1765960368127,0.31309118,86598.0,86597.0,0.0002]
[1765960368522,0.31309118,86598.0,86597.0,0.0012165]
[1765960368711,0.32464065,86598.0,86597.0,0.0012165]
[1765960369272,0.32464065,86598.0,86597.0,0.00159408]
[1765960369448,0.32464065,86598.0,86597.0,0.00259408]
[1765960369648,0.32664065,86598.0,86597.0,0.00259408]
[1765960369830,2.61734065,86598.0,86597.0,4.08e-06]
[1765960370240,2.61834065,86598.0,86597.0,4.08e-06]
[1765960370586,1.98191165,86598.0,86597.0,4.08e-06]
[1765960371441,1.98191165,86598.0,86580.0,0.0001]
[1765960371442,1.98191165,86598.0,86580.0,4.08e-06]
[1765960371443,2.33597,86581.0,86580.0,4.08e-06]
[1765960371641,2.4574501,86581.0,86580.0,4.08e-06]
[1765960372849,2.4574501,86581.0,86560.0,0.0012]
[1765960372850,1.93946393,86561.0,86560.0,0.0012]
[1765960373090,1.9683829,86561.0,86560.0,0.0012]
[1765960373259,1.0500809,86561.0,86560.0,0.0012]
[1765960374125,1.02979758,86561.0,86560.0,0.0012]
[1765960374307,0.90219258,86561.0,86560.0,0.0012]
[1765960375488,0.90319258,86561.0,86560.0,0.0012]
[1765960377209,0.90319258,86561.0,86560.0,0.00237604]
[1765960379184,0.90319258,86561.0,86548.0,0.01155428]
[1765960379185,0.42855765,86561.0,86552.0,0.01155374]
[1765960379426,0.42855765,86561.0,86556.0,0.01155321]
[1765960379427,0.61815507,86560.0,86556.0,0.01155321]
[1765960379629,0.61815507,86560.0,86548.0,0.01155428]
[1765960379630,0.01891,86549.0,86548.0,0.01155428]
[1765960379830,0.01891,86549.0,86540.0,0.0136]
[1765960379831,0.01891,86547.0,86541.0,0.23110433]
[1765960380010,0.01891,86547.0,86507.0,0.0136]
[1765960380011,0.26502162,86551.0,86526.0,0.244742]
[1765960380012,0.01155628,86533.0,86526.0,0.244742]
[1765960380204,0.01239,86541.0,86526.0,0.244742]
[1765960380205,0.01063897,86532.0,86531.0,0.24922103]
[1765960380436,0.01828,86548.0,86543.0,0.01155494]
[1765960380607,0.01828,86551.0,86549.0,0.01155414]
[1765960380835,0.01828,86551.0,86546.0,0.01155454]
[1765960380836,0.01891,86547.0,86546.0,0.01155454]
[1765960381045,0.01891,86547.0,86545.0,0.01155468]
[1765960381046,0.01891,86546.0,86545.0,0.01155468]
[1765960381242,0.01891,86546.0,86517.0,0.0136]
[1765960381244,0.05104,86525.0,86524.0,0.01155748]
[1765960381443,0.01061385,86546.0,86524.0,0.01155748]
[1765960381444,0.00989,86553.0,86524.0,0.01970287]
[1765960381645,0.00989,86553.0,86541.0,0.01155521]
[1765960381646,0.01891,86545.0,86541.0,0.01155521]
[1765960381865,0.01891,86545.0,86526.0,0.0136]
[1765960381866,0.01155428,86548.0,86525.0,0.01155735]
[1765960381867,0.01891,86526.0,86525.0,0.01155735]
[1765960382115,0.01891,86526.0,86519.0,0.01155815]
[1765960382116,0.01891,86520.0,86519.0,0.01155815]
[1765960382298,0.01060916,86520.0,86519.0,0.05976102]
[1765960382463,0.34662938,86530.0,86525.0,0.01155735]
[1765960382663,0.23112747,86533.0,86526.0,0.01155721]
[1765960382664,0.02218,86528.0,86526.0,0.01155721]
[1765960382892,0.02997,86525.0,86524.0,0.24270592]
[1765960383083,0.04057552,86525.0,86524.0,0.24270592]
[1765960383314,0.01891,86521.0,86520.0,0.24271844]
[1765960383512,0.02951552,86521.0,86520.0,0.01155802]
[1765960383664,0.01891,86520.0,86519.0,0.00172544]
[1765960383866,0.05158552,86520.0,86519.0,0.00011257]
[1765960384512,0.05158552,86520.0,86519.0,0.00172544]
[1765960384513,0.01060552,86520.0,86519.0,0.00172544]
[1765960384722,0.04697552,86520.0,86519.0,0.00372544]
[1765960384925,0.04697552,86520.0,86519.0,2.57e-06]
[1765960384926,0.07706059,86520.0,86519.0,2.57e-06]
[1765960385061,0.07706059,86520.0,86503.0,0.01156029]
[1765960385062,0.04002,86505.0,86503.0,0.01156029]
[1765960385248,0.01816297,86505.0,86503.0,0.01156029]
[1765960385445,0.00011297,86505.0,86504.0,0.23285605]
[1765960385648,0.00011297,86505.0,86504.0,0.28368754]
[1765960385861,0.00011297,86505.0,86504.0,0.23463754]
[1765960386293,0.00011297,86505.0,86504.0,0.28345754]
[1765960386718,0.00111297,86505.0,86504.0,0.28645754]
[1765960387781,0.00111297,86505.0,86504.0,0.24063754]
[1765960389451,0.00111297,86505.0,86504.0,0.25903754]
[1765960389642,0.00111297,86505.0,86504.0,0.28645754]
[1765960398374,0.01174739,86505.0,86504.0,0.28645754]
[1765960398584,0.00111297,86505.0,86504.0,0.28645754]
[1765960398794,0.00111297,86505.0,86504.0,0.62717593]
[1765960399927,0.00011297,86505.0,86504.0,0.62417593]
[1765960400226,0.00011297,86505.0,86504.0,0.62117593]
[1765960400431,0.01112,86544.0,86504.0,0.62117593]
[1765960400433,0.28607408,86549.0,86546.0,0.01155454]
[1765960400676,0.01065411,86548.0,86546.0,0.2310885]
[1765960400889,0.01065411,86547.0,86546.0,0.24264304]
[1765960401117,0.01065411,86547.0,86546.0,0.01155454]
[1765960401318,0.01065411,86547.0,86546.0,0.0119997]
[1765960402504,0.01065411,86547.0,86546.0,0.0578197]
[1765960403930,0.01165411,86547.0,86546.0,0.0578197]
[1765960404265,0.01265411,86547.0,86546.0,0.0578197]
[1765960404670,0.01265411,86547.0,86546.0,0.0303997]
[1765960404889,0.09789626,86558.0,86554.0,0.01155348]
[1765960405089,0.00011334,86558.0,86555.0,0.23106695]
[1765960405504,0.00011334,86558.0,86557.0,0.04582]
[1765960405705,0.00011334,86558.0,86556.0,0.23106223]
[1765960405916,0.00011334,86558.0,86557.0,0.0184]
[1765960406121,0.00011334,86558.0,86557.0,0.04582]
[1765960406334,0.00011334,86558.0,86557.0,0.04743287]
[1765960406544,0.00311334,86558.0,86557.0,0.04743287]
[1765960406753,0.09333716,86581.0,86580.0,0.24551023]
[1765960406754,0.00115321,86581.0,86580.0,0.24551023]
[1765960406963,0.00115321,86581.0,86580.0,0.2929431]
[1765960408185,0.00315321,86581.0,86580.0,0.2929431]
[1765960408808,0.00115321,86581.0,86580.0,0.2929431]
[1765960409227,0.00115321,86581.0,86580.0,0.2939431]
[1765960409662,0.00115321,86581.0,86580.0,0.2959431]
[1765960414477,0.00115321,86581.0,86580.0,0.3142631]
[1765960416106,0.00115321,86581.0,86580.0,0.2959431]
[1765960416633,0.00115321,86581.0,86580.0,0.2501231]
[1765960417719,0.00115321,86581.0,86580.0,0.2674431]
[1765960417947,0.00115321,86581.0,86580.0,0.2654431]
[1765960418165,0.00115321,86581.0,86580.0,0.2664431]
[1765960418669,0.00115321,86581.0,86580.0,0.2481231]
[1765960418900,0.00115321,86581.0,86580.0,0.2988831]
[1765960419234,0.00115321,86581.0,86580.0,0.2998831]
[1765960419440,0.00115321,86581.0,86580.0,0.2988831]
[1765960419638,0.00115321,86581.0,86580.0,0.2691731]
[1765960420082,0.00115321,86581.0,86580.0,0.2681731]
[1765960420512,0.00115321,86581.0,86580.0,0.2691731]
[1765960420663,0.00115321,86581.0,86580.0,0.2701731]
[1765960424659,0.00115321,86581.0,86580.0,0.3006231]
[1765960426859,0.00115321,86581.0,86580.0,0.3189031]
[1765960427057,0.00115321,86581.0,86580.0,0.3006231]
[1765960428511,0.00115321,86581.0,86580.0,0.2701731]
[1765960429040,0.00115321,86581.0,86580.0,0.00361287]
[1765960429664,0.00115321,86581.0,86580.0,0.00261287]
[1765960429864,0.01270308,86581.0,86577.0,0.01155041]
[1765960430066,0.00115321,86581.0,86580.0,0.001]
[1765960430690,0.01995321,86581.0,86580.0,0.001]
[1765960430896,0.01995321,86581.0,86560.0,0.06452839]
[1765960430897,0.00959,86570.0,86560.0,0.01451]
[1765960431100,0.01155174,86567.0,86560.0,0.02606268]
[1765960431333,0.01066152,86566.0,86562.0,0.01155241]
[1765960431563,0.01066152,86565.0,86563.0,0.01155227]
[1765960431793,0.01155147,86569.0,86563.0,0.01155227]
[1765960431958,0.02221332,86568.0,86563.0,0.01155227]
[1765960432134,0.01066171,86567.0,86563.0,0.01155227]
[1765960432541,0.02221345,86567.0,86563.0,0.01155227]
[1765960432776,0.02221358,86566.0,86562.0,0.01155241]
[1765960432995,0.24262258,86555.0,86543.0,0.02741494]
[1765960433288,0.24262258,86555.0,86539.0,0.01155548]
[1765960433289,0.03714,86553.0,86539.0,0.01155548]
[1765960433490,0.03714,86553.0,86537.0,0.01155575]
[1765960433491,0.04780171,86553.0,86538.0,0.01155561]
[1765960433915,0.04780171,86553.0,86537.0,0.24266835]